Cogmind - Beta 16 @@@ ROGUE MODE // 2025.11.01 @ 15:47:33 Player: C0-2MO Result: Destroyed by S-27 Virus with Autogun Performance ------------- Evolutions (5) 2500 Regions Visited (18) 3600 Robots Destroyed (100) 500 Value Destroyed (2187) 2187 Prototype IDs (32) 640 Alien Tech Used (0) 0 Bonus (4932) 4932 TOTAL SCORE: 14359 Bonus ------- High Alert Combat Kills 55 Follower Combat Kills 2956 Network Hubs Disabled 800 Registered with UFD 300 Met Optimus in HQ 500 Built Enhanced Grunts 300 A7 Reached Mainframe 300 Met R17 at Cetus 500 Friendly Fire -779 Cogmind --------- Core Integrity 0/1000 Matter 273/300 Energy 14/100 System Corruption 0% Temperature Cool (0) Movement Core (200) Ox3 Location -5/Factory Parts ------- > --- POWER (1) -------- (None) > --- PROPULSION (6) --- Cooled Nuclear Pulse Thruster > --- UTILITY (8) ------ Medium Storage Unit Machine Analyzer Terrain Scan Processor ECM Suite Advanced Hacking Suite Corruption Screen > --- WEAPON (2) ------- (None) > --- INVENTORY (10) --- Light Fission Core Cloaking Device Advanced Cloaking Device Medium Regenerative Plating Advanced Trap Extractor (0/8) Heavy Pick Peak State ------------ > --- POWER ------------ Compact Particle Reactor > --- PROPULSION ------- Improved Airjet Cooled Aerolev Unit Gravmag Array Antigrav System Gyrokinetic Inverter > --- UTILITY ---------- Medium Storage Unit Improved Sensor Array Improved Signal Interpreter ECM Suite Medium Regenerative Plating Improved Hacking Suite Advanced Hacking Suite Advanced Hacking Suite > --- WEAPON ----------- Advanced KE Penetrator Advanced Datajack > --- INVENTORY -------- Micro Antimatter Reactor Gravmag System Advanced Gravity Neutralizer Stasis Canceller Improved Hacking Suite Authchip [Propulsion] Improved Corruption Screen Improved Trap Extractor Mini Grenade Launcher Power Sword [Rating: 94] Favorites ----------- Power Light Ion Engine Engine Light Ion Engine Power Core Light Fission Core Reactor Compact Particle Reactor Propulsion Improved Flight Unit Treads Light Treads Leg Carbon-fiber Leg Wheel Compact Wheel Hover Unit Gravmag System Flight Unit Improved Flight Unit Utility Medium Storage Unit Device Structural Scanner Storage Medium Storage Unit Processor Corruption Screen Hackware Improved Hacking Suite Protection Improved Propulsion Shielding Weapon Power Sword Energy Gun Medium Laser Energy Cannon Advanced Beam Cannon Ballistic Gun Enhanced Autogun Ballistic Cannon Light Cannon Launcher Mini Grenade Launcher Special Weapon Plasma Cutter Impact Weapon Hammer Slashing Weapon Power Sword Piercing Weapon Heavy Pick Special Melee Weapon Datajack Build | -11 -10 -10 -9 -9 -8 -8 -8 -8 -6 -6 -6 -6 -6 -6 -6 -5 -5 -5 ------- Run | Yrd Mat Min Mat Min Mat Sto Rec Scr Fac Was Fac Ext Cet Arc Hub Fac Was Fac Slots Evolved 10 | . . . 2 . 2 . . . 4 . . . . . . 2 . . Power . | . . . . . . . . . . . . . . . . . . . Propulsion 4 | . . . 2 . . . . . 2 . . . . . . . . . Utility 6 | . . . . . 2 . . . 2 . . . . . . 2 . . Weapon . | . . . . . . . . . . . . . . . . . . . Parts Attached 156 | 6 12 3 22 1 9 3 . . 21 . 6 5 6 15 4 34 . 9 Power 19 | . 1 . 4 . 2 . . . 5 . . 2 . 2 . 3 . . Engine 8 | . 1 . 4 . 2 . . . . . . 1 . . . . . . Core 9 | . . . . . . . . . 5 . . 1 . . . 3 . . Reactor 2 | . . . . . . . . . . . . . . 2 . . . . Propulsion 50 | 2 5 . 8 . 1 . . . 4 . 2 1 . 5 3 16 . 3 Treads 1 | 1 . . . . . . . . . . . . . . . . . . Leg 1 | . . . 1 . . . . . . . . . . . . . . . Wheel 1 | 1 . . . . . . . . . . . . . . . . . . Hover 12 | . . . . . . . . . . . . . . 5 3 4 . . Flight 35 | . 5 . 7 . 1 . . . 4 . 2 1 . . . 12 . 3 Utility 52 | 2 1 1 6 . 2 1 . . 6 . 4 2 1 6 1 14 . 5 Device 16 | 1 . 1 . . . . . . 2 . 2 . . 2 . 6 . 2 Storage 7 | 1 . . 3 . . . . . . . . . . 1 1 . . 1 Processor 9 | . . . . . . . . . 1 . 1 2 . . . 4 . 1 Hackware 15 | . . . 2 . 1 1 . . 3 . 1 . . 2 . 4 . 1 Protection 5 | . 1 . 1 . 1 . . . . . . . 1 1 . . . . Artifact . | . . . . . . . . . . . . . . . . . . . Weapon 35 | 2 5 2 4 1 4 2 . . 6 . . . 5 2 . 1 . 1 Energy Gun 6 | 1 1 . . . . 2 . . . . . . 2 . . . . . Energy Cannon 2 | . . . 1 . . . . . . . . . . 1 . . . . Ballistic Gun 6 | 1 2 . . . 2 . . . . . . . 1 . . . . . Ballistic Cannon 1 | . 1 . . . . . . . . . . . . . . . . . Launcher 6 | . . 1 2 1 1 . . . 1 . . . . . . . . . Special Weapon 3 | . . 1 . . . . . . . . . . 2 . . . . . Impact Weapon 1 | . . . 1 . . . . . . . . . . . . . . . Slashing Weapon 4 | . . . . . 1 . . . 2 . . . . . . . . 1 Piercing Weapon 2 | . . . . . . . . . 1 . . . . . . 1 . . Special Melee Weapon 4 | . 1 . . . . . . . 2 . . . . 1 . . . . Unidentified Prototypes 19 | . . . 3 . 3 2 . . . . . . 3 5 1 1 . 1 Corrupted Parts 1 | . . 1 . . . . . . . . . . . . . . . . System Corruption 4 | . . 4 . . . . . . . . . . . . . . . . Parts Lost 44 | . 1 . 3 . 1 2 . . 6 . . 4 . . . 19 . 8 Power 8 | . . . 1 . 1 . . . 2 . . 1 . . . 2 . 1 Propulsion 18 | . 1 . . . . . . . 3 . . 2 . . . 10 . 2 Utility 12 | . . . 2 . . 1 . . 1 . . 1 . . . 4 . 3 Weapon 6 | . . . . . . 1 . . . . . . . . . 3 . 2 Highest Loss Streak 9 | . 1 . 1 . 1 1 . . 3 . . 3 . . . 9 . 7 To Critical Strikes . | . . . . . . . . . . . . . . . . . . . Average Backups 8 | 2 5 5 9 9 9 9 8 9 9 10 7 8 9 9 10 8 5 5 Power . | . . . . . . 1 1 1 . . 1 . . . 1 . 1 1 Propulsion 1 | 1 2 2 2 2 2 2 2 2 . . . . . . 1 . . . Utility 3 | . . 1 3 3 3 3 3 3 5 4 2 3 5 5 5 5 3 3 Weapon 1 | . 1 2 . . 2 1 1 1 1 2 1 1 2 2 1 1 1 1 Tool/Special . | . . . . . . . . . . . . . . . . . . . Unused Backups 22 | . 5 1 2 . 2 . . . 4 1 1 1 . 2 . 1 . 2 Power 2 | . . . . . . . . . 1 . 1 . . . . . . . Propulsion 6 | . 4 . 2 . . . . . . . . . . . . . . . Utility 9 | . . 1 . . . . . . 2 1 . . . 2 . 1 . 2 Weapon 4 | . 1 . . . 2 . . . . . . 1 . . . . . . Tool/Special 1 | . . . . . . . . . 1 . . . . . . . . . Average Slot Usage (%) 90 | . 83 85 94 100 99 99 100 100 97 53 77 79 73 88 88 86 66 77 Engine 3 | . 1 . 8 11 9 9 9 9 . . . 2 6 1 . . . . Core 1 | . . . . . . . . . 5 6 6 3 . . . . 5 4 Reactor 1 | . . . . . . . . . . . . . . 4 6 4 . . Hover 5 | . . . . . . . . . . . . . . 23 28 17 . . Flight 26 | . 17 28 42 44 36 36 36 36 38 20 30 29 26 7 . 7 11 21 Device 5 | . 14 14 . . . . . . 12 . 4 1 . 1 . 11 10 9 Storage 6 | . 5 . 9 10 9 9 9 9 6 6 6 6 6 6 6 4 . 2 Processor 5 | . . . . . . . . . 5 6 8 15 20 9 6 6 20 18 Hackware 12 | . . . 8 11 17 17 18 18 13 13 13 10 6 15 20 16 11 8 Protection 4 | . 6 13 1 . 9 9 9 9 . . . . . 4 6 3 . 2 Ballistic Gun 2 | . 13 . . . . . 6 9 . . . . . . 2 . . . Impact Weapon 1 | . . . 10 9 1 . . . . . . . . . . . . . Slashing Weapon 4 | . . . . . 7 8 9 9 4 . 4 5 . 6 6 3 . 1 Special Melee Weapon 3 | . 2 14 2 . 8 5 . . 4 . . 2 . 3 1 3 . . Peak Build Rating 94 | 6 7 9 23 25 30 30 32 33 59 33 52 53 53 88 92 94 70 82 Average Rating 45 | 4 5 6 18 23 28 29 31 32 53 32 46 45 42 75 88 77 64 68 On Entrance 36 | . 6 6 6 23 23 29 30 32 33 32 33 46 44 44 86 87 70 60 Avg Prop Armor Cover (%) 6 | 19 16 . 2 . . . . . 2 . . . . 13 . 4 . 19 Naked Turns . | . . . . . . . . . . . . . . . . . . . Heaviest Build 40 | 9 10 8 20 19 20 18 20 20 25 16 25 24 20 34 39 40 13 33 Greatest Support 65 | 16 16 8 20 20 20 20 20 20 32 16 28 28 22 62 65 65 19 40 Greatest Overweight (x) 11 | . 3 1 1 . . . . . 1 . . 1 . 11 . 5 . 3 Average Overweight (x) . | . . . . . . . . . . . . . . 1 . . . . Largest Inventory Capacity 10 | 8 8 5 10 10 10 10 10 10 10 10 10 10 10 10 10 10 5 10 Average Capacity 9 | 7 6 5 9 9 10 10 10 10 10 10 10 10 10 10 10 9 5 7 Most Carried 10 | 4 7 5 10 10 10 10 8 10 10 10 10 10 10 10 10 10 5 7 Average Carried 8 | 2 5 4 9 9 9 9 8 9 9 9 7 8 9 9 10 8 4 5 Final Capacity 10 | 8 5 5 10 10 10 10 10 10 10 10 10 10 10 10 10 5 5 10 Final Carried 10 | 4 5 5 10 10 10 8 8 10 10 10 8 10 10 10 10 5 5 6 Class Distribution -------------------- 26% | Hacker-Sprinter 16% | Hacker-Scout 12% | Hacker-Mutant 12% | Sprinter 9% | Mutant 8% | Scavenger-Mutant 7% | Commander-Sprinter Dominant Class ---------------- Mutant | -10/Materials Mutant | -10/Mines Sprinter | -9/Materials Sprinter | -9/Mines Hacker-Sprinter | -8/Materials Commander-Sprinter | -8/Storage Hacker-Sprinter | -8/Recycling Hacker-Sprinter | -8/Scraptown Hacker-Scout | -6/Factory Hacker-Sprinter | -6/Waste Hacker-Sprinter | -6/Factory Commander-Sprinter | -6/Extension Sprinter | -6/Cetus Scavenger-Mutant | -6/Archives Hacker-Mutant | -6/Hub_04(d) Hacker-Mutant | -5/Factory Hacker-Mutant | -5/Waste Scavenger-Scout | -5/Factory Resources | -11 -10 -10 -9 -9 -8 -8 -8 -8 -6 -6 -6 -6 -6 -6 -6 -5 -5 -5 ----------- Run | Yrd Mat Min Mat Min Mat Sto Rec Scr Fac Was Fac Ext Cet Arc Hub Fac Was Fac Matter Collected 3155 | 272 226 80 381 1 219 120 10 10 430 . 6 274 150 199 152 452 80 93 Remotely . | . . . . . . . . . . . . . . . . . . . Salvage Created 3120 | 111 320 11 633 29 73 249 . . 168 . . 352 113 212 450 235 . 164 Parts 207 | 9 29 6 36 5 . 17 . . 17 . . 8 4 28 25 17 . 6 Haulers Intercepted 14 | . 2 . 6 . 2 4 . . . . . . . . . . . . Recyclers Shooed 3 | . . . 3 . . . . . . . . . . . . . . . Parts Field Recycled . | . . . . . . . . . . . . . . . . . . . Retrieved Matter . | . . . . . . . . . . . . . . . . . . . Parts Self-Destructed . | . . . . . . . . . . . . . . . . . . . Prevented . | . . . . . . . . . . . . . . . . . . . Parts Restored . | . . . . . . . . . . . . . . . . . . . Kills | -11 -10 -10 -9 -9 -8 -8 -8 -8 -6 -6 -6 -6 -6 -6 -6 -5 -5 -5 ------- Run | Yrd Mat Min Mat Min Mat Sto Rec Scr Fac Was Fac Ext Cet Arc Hub Fac Was Fac Combat Hostiles Destroyed 47 | . 10 3 10 4 . 4 . . 2 . . 1 1 . 9 3 . . Melee 7 | . . . . . . 1 . . . . . . . . 5 1 . . Guns 17 | . 10 . . . . . . . . . . . 1 . 4 2 . . Cannons 3 | . . . 2 1 . . . . . . . . . . . . . . AOE 19 | . . 3 7 3 . 3 . . 2 . . 1 . . . . . . Classes Destroyed 16 | 2 4 . 3 . . . . . 3 . . 2 . . 1 1 . . Worker 1 | . . . 1 . . . . . . . . . . . . . . . Builder 4 | . . . . . . . . . 1 . . . . . . 2 . 1 Tunneler 6 | 3 1 . 1 . . . . . 1 . . . . . . . . . Hauler 14 | . 2 . 6 . 2 4 . . . . . . . . . . . . Recycler 6 | 1 . . 2 . . . . . . . . 2 . . . . . 1 Mechanic 1 | . . . . . . . . . . . . 1 . . . . . . Operator 10 | . 1 . 1 . . . . . 2 . . . . 5 1 . . . Turret 1 | . . . . . . . . . . . . . . . . 1 . . Watcher 9 | . . . 3 . . . . . 3 . . . 2 . 1 . . . Swarmer 30 | . 9 3 7 4 . 3 . . . . . . . . 3 1 . . Cutter 1 | . . . . . . . . . 1 . . . . . . . . . Grunt 6 | . 1 . 2 . . 1 . . . . . . . . 2 . . . Duelist 1 | . . . . . . . . . . . . 1 . . . . . . Sentry 3 | . . . 1 . . . . . . . . . . . 1 1 . . Hunter 2 | . . . . . . . . . . . . . . . 1 1 . . Programmer 3 | . . . . . . . . . 1 . . . . . 2 . . . Cetus Guard 1 | . . . . . . . . . . . . . 1 . . . . . Best Kill Streak 6 | 3 4 3 6 4 1 3 . . 1 . . 2 1 1 3 1 . 1 Combat Bots Only 4 | . 3 3 4 4 . 3 . . 1 . . 1 1 . 3 1 . . Max Kills in Single Turn 3 | 1 1 1 3 3 1 3 . . 1 . . 2 1 1 1 1 . 1 Gunslinging . | . . . . . . . . . . . . . . . . . . . Exploded 3 | . . 1 3 3 . 3 . . 1 . . 1 . . . . . . Melee 1 | . . . . . . 1 . . . . . . . . 1 1 . . Uniques/NPCs Destroyed 1 | . . . . . . . . . . . . . . 1 . . . . A7 (-6/Archives) Combat | -11 -10 -10 -9 -9 -8 -8 -8 -8 -6 -6 -6 -6 -6 -6 -6 -5 -5 -5 -------- Run | Yrd Mat Min Mat Min Mat Sto Rec Scr Fac Was Fac Ext Cet Arc Hub Fac Was Fac Hostile Shots Fired 610 | . 58 12 46 7 14 11 . . 102 . 4 70 2 . 85 116 . 83 Missed 279 | . 19 6 22 3 9 7 . . 73 . 2 36 . . 38 36 . 28 Hits 331 | . 39 6 24 4 5 4 . . 29 . 2 34 2 . 47 80 . 55 Melee 16 | . . . . . . . . . 1 . . . . . 1 . . 14 Projectile 315 | . 39 6 24 4 5 4 . . 28 . 2 34 2 . 46 80 . 41 AOE 4 | . . 2 . . . . . . 1 . . . . . . 1 . . Critical Strikes 17 | . . . 1 . . . . . . . . 1 1 . 1 5 . 8 Damage Taken 5627 | . 309 105 334 37 68 108 . . 572 . 70 480 44 . 662 1690 . 1148 Core 1713 | . 70 20 96 18 15 58 . . 106 . . 223 30 . 76 613 . 388 Absorbed by Shields 123 | . . . . . . . . . . . . 76 42 . . . . 5 Redirected to Shielding 38 | . . . . . 9 11 . . 18 . . . . . . . . . Regen/Repaired (Parts) 366 | . . . . . 24 . . . 39 . . . . . 124 113 . 66 Core Remaining (%) 73 | 100 . 64 . 71 . . . 86 . . . . . . 48 . . . Volleys Fired 207 | 12 66 11 30 9 . 4 . . 6 . . 6 17 . 23 23 . . Largest 2 | 2 2 1 1 2 . 1 . . 1 . . 1 1 . 1 1 . . Hottest 100 | 70 100 100 100 98 . 30 . . 30 . . 30 75 . 35 35 . . Shots Fired 263 | 24 107 11 30 11 . 4 . . 6 . . 7 17 . 23 23 . . Gun 192 | 24 106 . . . . . . . . . . . 16 . 23 23 . . Cannon 31 | . 1 . 21 9 . . . . . . . . . . . . . . Launcher 30 | . . 3 8 2 . 4 . . 6 . . 7 . . . . . . Special 10 | . . 8 1 . . . . . . . . . 1 . . . . . Kinetic 131 | 12 69 . 4 . . . . . . . . . . . 23 23 . . Thermal 101 | 12 38 8 18 9 . . . . . . . . 16 . . . . . Explosive 30 | . . 3 8 2 . 4 . . 6 . . 7 . . . . . . Electromagnetic . | . . . . . . . . . . . . . . . . . . . Robot Hit Streak 9 | 3 8 . 4 2 . 1 . . 2 . . 8 9 . 4 4 . . Robot Miss Streak 4 | 2 4 . 3 3 . 2 . . . . . . 2 . 2 2 . . Penetration Max 1 | . . . . . . . . . . . . . . . . 1 . . Secondary Targets 2 | . 2 . . . . . . . . . . . . . . . . . Max Gunslinging Chain 1 | . 1 . . . . . . . . . . . . . . . . . Shots Hit Robots 265 | 13 58 . 32 5 16 20 . . 11 . . 47 12 12 24 12 . 3 Core Hits 123 | 6 23 3 21 5 . 8 . . 14 . . 12 6 6 11 7 . 1 Critical Kills 5 | . . . . . . . . . . . . . . . 3 2 . . Critical Parts Destroyed 8 | . 1 . 2 . 2 . . . . . . . . . 3 . . . Critical Strikes 22 | . 2 . 2 . 2 4 . . 1 . . . 1 . 8 2 . . Burn 2 | . 1 . . . . . . . . . . . 1 . . . . . Destroy 9 | . 1 . . . . . . . . . . . . . 6 2 . . Smash 4 | . . . 2 . 2 . . . . . . . . . . . . . Sever 6 | . . . . . . 4 . . . . . . . . 2 . . . Impale 1 | . . . . . . . . . 1 . . . . . . . . . Melee Attacks 405 | . . . 54 4 35 41 6 . 82 . 7 48 . 15 44 42 . 27 Impact 77 | . . . 54 4 19 . . . . . . . . . . . . . Slashing 254 | . . . . . 16 41 6 . 60 . 7 14 . 13 44 41 . 12 Piercing 36 | . . . . . . . . . 21 . . . . . . . . 15 Sneak Attacks 76 | . . . 6 . 3 5 . . 6 . . 37 . 11 2 4 . 2 Combat Hostiles 2 | . . . . . 1 . . . 1 . . . . . . . . . Follow-up Attacks . | . . . . . . . . . . . . . . . . . . . Damage Inflicted 9742 | 150 574 153 1582 242 509 1128 . . 1080 . . 1132 258 1038 962 757 . 177 Guns 1454 | 150 574 . . . . . . . . . . . 258 . 310 162 . . Cannons 332 | . . . 245 87 . . . . . . . . . . . . . . Explosions 2514 | . . 153 605 120 . 280 . . 447 . . 712 . . . 197 . . Melee 5442 | . . . 732 35 509 848 . . 633 . . 420 . 1038 652 398 . 177 Ramming . | . . . . . . . . . . . . . . . . . . . Kinetic 864 | 50 309 . 33 . . . . . . . . . . . 310 162 . . Thermal 1119 | 100 265 . 212 87 . . . . . . . . 258 . . 197 . . Explosive 2285 | . . 153 605 120 . 280 . . 415 . . 712 . . . . . . Electromagnetic 32 | . . . . . . . . . 32 . . . . . . . . . Impact 1276 | . . . 732 35 509 . . . . . . . . . . . . . Slashing 3739 | . . . . . . 848 . . 383 . . 420 . 1038 652 398 . . Piercing 427 | . . . . . . . . . 250 . . . . . . . . 177 Highest Corruption 12 | . 2 6 . . . . . . 1 11 12 5 5 5 . 1 1 . Average Corruption 3 | . 2 3 . . . . . . 1 6 9 5 5 2 . 1 1 . Corruption Purged 13 | . . . . . . . . . . . 7 . . 5 . . 1 . Corruption Blocked 4 | . . . . . . . . . . . . . . . 1 3 . . Effects 42 | . 6 3 . . . . . . . . 6 14 8 1 . 4 . . Message Errors 8 | . 1 . . . . . . . . . . 3 2 . . 2 . . Matter Fused 13 | . 3 . . . . . . . . . 2 5 3 . . . . . Heat Flow Errors 1 | . . . . . . . . . . . . 1 . . . . . . Energy Discharges 7 | . . 2 . . . . . . . . 1 2 2 . . . . . Parts Fused 2 | . 1 . . . . . . . . . . . . 1 . . . . Data Loss (minor) 8 | . 1 1 . . . . . . . . 2 1 1 . . 2 . . Data Loss (major) 1 | . . . . . . . . . . . . 1 . . . . . . Misfires 1 | . . . . . . . . . . . . 1 . . . . . . Alerts 1 | . . . . . . . . . . . 1 . . . . . . . Overload Shots . | . . . . . . . . . . . . . . . . . . . Overflow Damage 1061 | . . 4 163 . 86 42 . . 163 . . 77 . 254 149 90 . 33 Projectiles 12 | . . . 12 . . . . . . . . . . . . . . . Explosions 104 | . . 4 . . . . . . 28 . . 23 . . . 49 . . Melee 945 | . . . 151 . 86 42 . . 135 . . 54 . 254 149 41 . 33 Knockbacks 1 | . . . . 1 . . . . . . . . . . . . . . Impact 1 | . . . . 1 . . . . . . . . . . . . . . Kinetic . | . . . . . . . . . . . . . . . . . . . Secondary . | . . . . . . . . . . . . . . . . . . . Self-Inflicted Damage 152 | . . . 16 . . 39 . . 49 . . 48 . . . . . . Shots 4 | . . . 1 . . 1 . . 1 . . 1 . . . . . . Rammed . | . . . . . . . . . . . . . . . . . . . Targets Rammed . | . . . . . . . . . . . . . . . . . . . Kicked . | . . . . . . . . . . . . . . . . . . . Crushed . | . . . . . . . . . . . . . . . . . . . Highest Temperature 295 | 40 240 40 295 120 266 6 . . 114 . . 221 210 1 11 66 . 6 Average Temperature 30 | 20 56 12 100 54 124 3 . . 14 . . 101 77 1 3 25 . 3 Received Heat Transfer 754 | . 6 9 117 12 27 27 . . 66 . 9 118 . . 81 208 . 74 Effects 1 | . . . 1 . . . . . . . . . . . . . . . Energy Bleed 1 | . . . 1 . . . . . . . . . . . . . . . Siege Activations . | . . . . . . . . . . . . . . . . . . . Martial Activations . | . . . . . . . . . . . . . . . . . . . Shielding Activations . | . . . . . . . . . . . . . . . . . . . Robots Disrupted . | . . . . . . . . . . . . . . . . . . . Combat Hostiles . | . . . . . . . . . . . . . . . . . . . Robots Corrupted 7 | . . . 5 . 2 . . . . . . . . . . . . . Combat Hostiles 1 | . . . 1 . . . . . . . . . . . . . . . Parts Fried 4 | . . . 2 . 1 . . . 1 . . . . . . . . . Impact Corruptions 12 | . . . 7 . 5 . . . . . . . . . . . . . Robots Melted . | . . . . . . . . . . . . . . . . . . . Combat Hostiles . | . . . . . . . . . . . . . . . . . . . Parts Melted 1 | . 1 . . . . . . . . . . . . . . . . . Heat Transferred 2295 | 296 851 . 370 148 . . . . . . . . 518 . . 112 . . Parts Sabotaged . | . . . . . . . . . . . . . . . . . . . Parts Stolen . | . . . . . . . . . . . . . . . . . . . Parts Stripped . | . . . . . . . . . . . . . . . . . . . Power Chain Reactions . | . . . . . . . . . . . . . . . . . . . Alert | -11 -10 -10 -9 -9 -8 -8 -8 -8 -6 -6 -6 -6 -6 -6 -6 -5 -5 -5 ------- Run | Yrd Mat Min Mat Min Mat Sto Rec Scr Fac Was Fac Ext Cet Arc Hub Fac Was Fac Maximum Alert Level 3 | . . . 2 1 1 3 2 . 1 . 1 2 2 1 1 1 . 1 Low Security (%) 66 | 100 100 100 42 58 94 19 8 . 77 100 85 37 . 9 95 96 100 99 Level 1 25 | . . . 34 41 5 34 87 . 22 . 14 36 53 90 4 3 . . Level 2 5 | . . . 23 . . 5 3 . . . . 26 46 . . . . . Level 3 2 | . . . . . . 39 . . . . . . . . . . . . Level 4 . | . . . . . . . . . . . . . . . . . . . Level 5 . | . . . . . . . . . . . . . . . . . . . High Security . | . . . . . . . . . . . . . . . . . . . Max Security . | . . . . . . . . . . . . . . . . . . . Peak Influence 926 | 5 197 134 483 284 215 926 405 . 334 116 259 649 486 373 232 230 50 204 Initial 358 | . . 54 10 139 91 27 312 . . 116 74 122 358 186 62 40 50 . Average 179 | 1 106 86 251 194 146 467 292 . 119 112 125 312 398 278 90 87 26 45 Influence Increases 8817 | 20 442 153 844 245 430 1285 158 . 1157 . 276 1141 328 267 696 811 . 564 Destroy 0b10 Robot/C 2540 | . 200 60 200 160 100 440 . . 80 . . 580 160 80 240 180 . 60 Destroy 0b10 Robot/NC 290 | 20 20 . 70 . 15 35 . . 35 . . 15 10 30 20 10 . 10 Destroy Leader 538 | . 44 10 48 30 34 140 . . 26 . . 50 . . 86 50 . 20 Allied During Kill 967 | . . . . 27 35 257 . . 7 . . 250 119 110 104 58 . . Trap Triggered on 0b10 170 | . . . . . . . . . 160 . . . . . . 10 . . Successful Hack 510 | . 13 . 28 . 19 12 32 . 71 . 44 . 7 . 48 110 . 126 Select Force Hacks 330 | . 60 . 60 . 60 30 120 . . . . . . . . . . . Disable Machine 390 | . . . 30 . . 45 . . 60 . . 15 15 45 105 75 . . Anti-Garrison Action 200 | . . . . . . 200 . . . . . . . . . . . . Destroy Structure 647 | . . 23 78 13 17 51 6 . 118 . 7 81 17 2 48 138 . 48 Partial Spotted 540 | . 15 . 30 . 30 60 . . 150 . 15 90 . . 15 75 . 60 Lose Combat Pursuer 1695 | . 90 60 300 15 120 15 . . 450 . 210 60 . . 30 105 . 240 Influence Decreases 8643 | 20 302 266 512 370 597 550 784 176 823 228 132 750 503 554 791 752 143 390 Entered New Map 2367 | . . 86 17 220 143 40 490 176 . 218 32 128 283 280 117 44 93 . Time Decay 4220 | 20 292 180 365 150 334 270 294 . 515 10 100 222 160 254 386 428 50 190 Search Patrol Dispatched 200 | . . . 100 . . . . . 100 . . . . . . . . . Lost Part 440 | . 10 . 30 . 10 20 . . 60 . . 40 . . . 190 . 80 Lost Ally 1130 | . . . . . 110 220 . . 70 . . 360 60 20 80 90 . 120 Purge Threat 286 | . . . . . . . . . 78 . . . . . 208 . . . Squads Dispatched 71 | . 3 . 3 . 3 8 . . 19 . 4 4 . . 4 15 . 8 Investigation 40 | . 2 . 3 . 2 3 . . 12 . 4 1 . . . 8 . 5 Extermination 11 | . . . . . . . . . 5 . . . . . 2 3 . 1 Reinforcement 14 | . 1 . . . 1 . . . 2 . . 2 . . 2 4 . 2 Assault 5 | . . . . . . 4 . . . . . 1 . . . . . . Garrison 1 | . . . . . . 1 . . . . . . . . . . . . Intercept . | . . . . . . . . . . . . . . . . . . . Searches Triggered 2 | . . . 1 . . . . . 1 . . . . . . . . . Unchained Authorized 3 | . . . . . . . . . 1 . . . . . . 1 . 1 Construction Impeded 2 | . . . . . . . . . . . . 2 . . . . . . Haulers Reinforced 1 | . . . . . . . . . 1 . . . . . . . . . Active Scanning Responses . | . . . . . . . . . . . . . . . . . . . Cargo Convoy Interrupts . | . . . . . . . . . . . . . . . . . . . Stealth | -11 -10 -10 -9 -9 -8 -8 -8 -8 -6 -6 -6 -6 -6 -6 -6 -5 -5 -5 --------- Run | Yrd Mat Min Mat Min Mat Sto Rec Scr Fac Was Fac Ext Cet Arc Hub Fac Was Fac Distress Signals 14 | . 3 . 1 . . 4 . . 1 . . . . . . 2 . 3 Communications Jammed . | . . . . . . . . . . . . . . . . . . . Distress Signals . | . . . . . . . . . . . . . . . . . . . Times Spotted 368 | . 27 12 48 8 18 23 . . 48 4 8 33 8 5 24 61 . 41 Peak Tracking Total 12 | . 4 4 8 4 6 5 . . 9 4 6 4 4 . 3 11 . 12 Tactical Retreats 68 | . 3 4 10 1 5 1 . . 17 . 4 2 . . 2 13 . 6 ECM-based Alert Blocks 23 | . . . . . . . . . . . . . . . . 14 . 9 Traps | -11 -10 -10 -9 -9 -8 -8 -8 -8 -6 -6 -6 -6 -6 -6 -6 -5 -5 -5 ------- Run | Yrd Mat Min Mat Min Mat Sto Rec Scr Fac Was Fac Ext Cet Arc Hub Fac Was Fac Traps Triggered 13 | . 1 . . . . . . . 1 . 2 6 . . . 1 . 2 Indirectly . | . . . . . . . . . . . . . . . . . . . Trap Hack Attempts 238 | . . . . . . 25 . . 190 . . . . . . 23 . . Triggered 1 | . . . . . . . . . 1 . . . . . . . . . Disarmed 9 | . . . . . . . . . 3 . . . . . . 6 . . Reprogrammed 43 | . . . . . . 4 . . 35 . . . . . . 4 . . Reused 18 | . . . . . . . . . 17 . . . . . . 1 . . Traps Extracted 17 | . . . . 5 . . . . 12 . . . . . . . . . Installed 14 | . . . . . . . . . 14 . . . . . . . . . Triggered 17 | . . . . . . . . . 16 . . . . . . 1 . . Most Traps Carried 6 | . . . . 5 5 5 5 5 6 2 2 2 2 2 2 2 2 2 Machines | -11 -10 -10 -9 -9 -8 -8 -8 -8 -6 -6 -6 -6 -6 -6 -6 -5 -5 -5 ---------- Run | Yrd Mat Min Mat Min Mat Sto Rec Scr Fac Was Fac Ext Cet Arc Hub Fac Was Fac Machines Disabled 27 | . . . 2 . . 3 . . 4 . . 2 1 3 7 5 . . Max in Single Turn 4 | . . . 1 . . 1 . . 4 . . 1 1 . 1 2 . . Garrison Access 10 | . . . . . . 1 . . 4 . . . . . 2 1 . 2 Network Hub 4 | . . . . . . . . . . . . . . . 4 . . . Energy Cycler 1 | . . . . . . . . . . . . 1 . . . . . . Machines Repaired . | . . . . . . . . . . . . . . . . . . . Machines Dismantled 5 | . . . . . . . . . . . . . 1 . 4 . . . Machines Sabotaged . | . . . . . . . . . . . . . . . . . . . Overloaded Fab Kills . | . . . . . . . . . . . . . . . . . . . Hacking | -11 -10 -10 -9 -9 -8 -8 -8 -8 -6 -6 -6 -6 -6 -6 -6 -5 -5 -5 --------- Run | Yrd Mat Min Mat Min Mat Sto Rec Scr Fac Was Fac Ext Cet Arc Hub Fac Was Fac Machines Accessed 163 | . 8 1 13 . 12 14 12 8 41 . 8 4 1 . 11 15 . 15 Terminals 86 | . 6 . 10 . 6 12 6 . 19 . 3 3 1 . 9 5 . 6 Fabricators 12 | . . . . . . . . . 4 . 1 . . . . 4 . 3 Repair Stations 5 | . . . . . 2 . . . 3 . . . . . . . . . Recycling Units 30 | . 2 . 2 . 2 1 4 . 8 . 3 1 . . . 4 . 3 Scanalyzers 9 | . . . 1 . 2 . . . 3 . 1 . . . . 1 . 1 Garrison Access 10 | . . . . . . 1 . . 4 . . . . . 2 1 . 2 Total Hacks 584 | . 17 1 54 . 60 42 56 34 107 . 19 8 6 . 44 68 . 68 Successful 379 | . 8 1 32 . 38 20 45 34 67 . 13 3 2 . 27 47 . 42 Failed 203 | . 9 . 22 . 21 22 10 . 40 . 6 5 4 . 17 21 . 26 Catastrophic 25 | . 1 . 3 . 2 5 . . 2 . 1 2 1 . 1 1 . 6 Database Lockouts 2 | . . . . . 1 . 1 . . . . . . . . . . . Manual 384 | . 17 . 44 . 47 31 33 . 72 . 10 8 1 . 35 40 . 46 Terminals 365 | . 13 . 40 . 45 37 27 . 59 . 7 5 6 . 40 41 . 45 Fabricators 42 | . . . . . . . . . 10 . 6 . . . . 17 . 9 Repair Stations 11 | . . . . . 4 . . . 7 . . . . . . . . . Recycling Units 42 | . 4 . 2 . 4 1 5 . 13 . 3 3 . . . 4 . 3 Scanalyzers 45 | . . . 12 . 7 . . . 11 . 3 . . . . 5 . 7 Garrison Access 20 | . . . . . . 4 . . 7 . . . . . 4 1 . 4 Terminal Hacks 130 | . . 1 6 . 10 6 30 34 10 . 1 . 2 . 6 14 . 10 Record 59 | . . . . . . . 24 33 . . . . 2 . . . . . Part Schematic 8 | . . . . . 1 . 2 . 1 . . . . . . 3 . 1 Robot Analysis 9 | . . . 3 . 3 . 2 . . . . . . . . 1 . . Prototype ID Bank 2 | . . . . . . . . . . . . . . . . 2 . . Open Door 7 | . . 1 . . . 4 . . 1 . 1 . . . . . . . Branch Access Points 2 | . . . . . 1 1 . . . . . . . . . . . . Emergency Access Points 1 | . . . . . . . . . . . . . . . . 1 . . Machine Index 2 | . . . . . . . . . 1 . . . . . 1 . . . Terminal Index 6 | . . . 1 . 1 . 1 . 1 . . . . . . 1 . 1 Fabricator Index 1 | . . . . . . . . . . . . . . . . 1 . . Recycling Unit Index 2 | . . . . . . . 1 . . . . . . . . . . 1 Alert Level 1 | . . . . . . . . . . . . . . . . . . 1 Unreport Threat 3 | . . . . . . . . . 1 . . . . . 2 . . . Locate Traps 4 | . . . . . 1 1 . . . . . . . . . 1 . 1 Extermination Status 1 | . . . . . . . . . . . . . . . . . . 1 Recall Extermination 1 | . . . . . . . . . 1 . . . . . . . . . Registered Components 2 | . . . . . . . . . . . . . . . . 1 . 1 Registered Prototypes 1 | . . . . . . . . . . . . . . . . . . 1 Zone Layout 17 | . . . 2 . 3 . . . 4 . . . . . 3 3 . 2 Proto ID Catalog 1 | . . . . . . . . 1 . . . . . . . . . . Fabricator Hacks 19 | . . . . . . . . . 4 . 3 . . . . 9 . 3 Network Status 1 | . . . . . . . . . 1 . . . . . . . . . Load Schematic 11 | . . . . . . . . . 2 . 2 . . . . 6 . 1 Build 7 | . . . . . . . . . 1 . 1 . . . . 3 . 2 Repair Station Hacks 9 | . . . . . 4 . . . 5 . . . . . . . . . Scan Component 5 | . . . . . 2 . . . 3 . . . . . . . . . Repair 4 | . . . . . 2 . . . 2 . . . . . . . . . Recycling Unit Hacks . | . . . . . . . . . . . . . . . . . . . Scanalyzer 33 | . . . 10 . 6 . . . 6 . 2 . . . . 3 . 6 Insert Component 11 | . . . 3 . 2 . . . 2 . 1 . . . . 1 . 2 Analyze 11 | . . . 4 . 2 . . . 2 . . . . . . 1 . 2 Retrieve Study 11 | . . . 3 . 2 . . . 2 . 1 . . . . 1 . 2 Garrison Access Hacks 9 | . . . . . . . . . 4 . . . . . 2 1 . 2 Seal Access 9 | . . . . . . . . . 4 . . . . . 2 1 . 2 Unauthorized Hacks 179 | . 8 . 16 . 18 14 15 . 38 . 7 3 . . 19 20 . 21 Terminals 137 | . 6 . 14 . 16 12 11 . 27 . 3 2 . . 19 12 . 15 Track 32 | . . . 3 . 5 4 2 . 4 . . 1 . . 8 2 . 3 Assimilate 8 | . 1 . 2 . 1 . . . 3 . . . . . . 1 . . Botnet 39 | . 1 . 4 . 4 3 4 . 9 . 1 1 . . 4 3 . 5 Disrupt 3 | . . . . . . . . . 1 . . . . . 1 1 . . Operators 2 | . . . . . 1 . . . . . . . . . . . . 1 Skim 53 | . 4 . 5 . 5 5 5 . 10 . 2 . . . 6 5 . 6 Fabricators 11 | . . . . . . . . . 3 . 1 . . . . 4 . 3 Prioritize 4 | . . . . . . . . . . . 1 . . . . 1 . 2 Liberate 1 | . . . . . . . . . 1 . . . . . . . . . Recompile 6 | . . . . . . . . . 2 . . . . . . 3 . 1 Repair Stations . | . . . . . . . . . . . . . . . . . . . Recycling Units 30 | . 2 . 2 . 2 1 4 . 8 . 3 1 . . . 4 . 3 Tunnel 11 | . 2 . 2 . 2 1 4 . . . . . . . . . . . Fedlink 18 | . . . . . . . . . 8 . 3 1 . . . 3 . 3 Scrapoids 1 | . . . . . . . . . . . . . . . . 1 . . Scanalyzers . | . . . . . . . . . . . . . . . . . . . Garrison Access 1 | . . . . . . 1 . . . . . . . . . . . . Jam 1 | . . . . . . 1 . . . . . . . . . . . . Data Cores Recovered 4 | . . . . . 1 1 . . 2 . . . . . . . . . Used . | . . . . . . . . . . . . . . . . . . . Hacking Detections 101 | . 6 . 11 . 8 11 3 . 30 . 4 3 1 . 9 8 . 7 Full Trace Events 10 | . 1 . 2 . . 1 1 . 2 . 1 . . . . 1 . 1 Feedback Events 2 | . . . . . . . . . . . 1 . . . . . . 1 Corruption 1 | . . . . . . . . . . . 1 . . . . . . . Hackware Fried 1 | . . . . . . . . . . . . . . . . . . 1 Feedback Blocked . | . . . . . . . . . . . . . . . . . . . Robot Schematics Acquired . | . . . . . . . . . . . . . . . . . . . Robots Built 6 | . . . . . . . . . . . . . . . . . . 6 Authchips . | . . . . . . . . . . . . . . . . . . . Time 100 | . . . . . . . . . . . . . . . . . . 100 Total Robot Build Rating 24 | . . . . . . . . . . . . . . . . . . 24 Part Schematics Acquired 18 | . . . 3 . 3 . 2 . 3 . . . . . . 4 . 3 Parts Built 10 | . . . . . . . . . 2 . 2 . . . . 6 . . Authchips 4 | . . . . . . . . . 1 . 1 . . . . 2 . . Time 114 | . . . . . . . . . 24 . 36 . . . . 54 . . Total Part Build Rating 30 | . . . . . . . . . 6 . 6 . . . . 18 . . Part Studies Acquired 11 | . . . 3 . 2 . . . 2 . 1 . . . . 1 . 2 Parts Repaired 4 | . . . . . 2 . . . 2 . . . . . . . . . Time 153 | . . . . . 83 . . . 70 . . . . . . . . . Parts Recycled . | . . . . . . . . . . . . . . . . . . . Recycled Matter . | . . . . . . . . . . . . . . . . . . . Retrieved Matter . | . . . . . . . . . . . . . . . . . . . Retrieved Components . | . . . . . . . . . . . . . . . . . . . Parts Scanalyzed 10 | . . . 3 . 2 . . . 2 . . . . . . 1 . 2 Part Schematics Acquired 10 | . . . 3 . 2 . . . 2 . . . . . . 1 . 2 Parts Damaged . | . . . . . . . . . . . . . . . . . . . Bothacking | -11 -10 -10 -9 -9 -8 -8 -8 -8 -6 -6 -6 -6 -6 -6 -6 -5 -5 -5 ------------ Run | Yrd Mat Min Mat Min Mat Sto Rec Scr Fac Was Fac Ext Cet Arc Hub Fac Was Fac Used RIF Installer . | . . . . . . . . . . . . . . . . . . . Robots Hacked 4 | . . . . . . . . . 1 . . . . 2 . 1 . . Non-combat 3 | . . . . . . . . . . . . . . 2 . 1 . . Combat . | . . . . . . . . . . . . . . . . . . . Robot Hacks Applied 3 | . . . . . . . . . . . . . . 2 . 1 . . no_distress 1 | . . . . . . . . . . . . . . . . 1 . . check_alert 2 | . . . . . . . . . . . . . . 2 . . . . Manual 1 | . . . . . . . . . 1 . . . . . . . . . Relay Couplers Released 2 | . . . . . . . . . 1 . . . . . 1 . . . Machine Destruction 2 | . . . . . . . . . 1 . . . . . 1 . . . Fabnet Peak Effective % . | . . . . . . . . . . . . . . . . . . . Robots Rewired 22 | . . . . . . . . . . . . 22 . . . . . . Allies Hacked . | . . . . . . . . . . . . . . . . . . . Hacks Repelled . | . . . . . . . . . . . . . . . . . . . Allies | -11 -10 -10 -9 -9 -8 -8 -8 -8 -6 -6 -6 -6 -6 -6 -6 -5 -5 -5 -------- Run | Yrd Mat Min Mat Min Mat Sto Rec Scr Fac Was Fac Ext Cet Arc Hub Fac Was Fac Total Allies 65 | . . . . 6 1 12 . . 5 . . 24 5 . . 6 . 6 Largest Group 10 | . . . . 6 6 10 . . 2 . . 9 8 7 5 4 . 3 Highest-Rated Group 694 | . . . . 115 115 173 . . 82 . . 293 694 655 423 188 . 90 Highest-Rated Ally 159 | . . . . 31 31 31 . . 41 . . 159 143 136 96 47 . 30 Total Orders 15 | . . . . . . 5 . . . . . . . 2 8 . . . STAY 8 | . . . . . . 2 . . . . . . . . 6 . . . ROAM 1 | . . . . . . . . . . . . . . 1 . . . . FOLLOW 6 | . . . . . . 3 . . . . . . . 1 2 . . . Ally Attacks 530 | . . . . 13 22 121 . . 7 . . 173 54 37 44 52 . 7 Total Damage 11272 | . . . . 233 283 1580 . . 396 . . 3193 1519 1168 1486 1142 . 272 Kills 90 | . . . . 4 6 22 . . 2 . . 29 7 5 6 6 . 3 Allies Corrupted 1 | . . . . . . . . . . . . . . . 1 . . . Allies Melted . | . . . . . . . . . . . . . . . . . . . Intel | -11 -10 -10 -9 -9 -8 -8 -8 -8 -6 -6 -6 -6 -6 -6 -6 -5 -5 -5 ------- Run | Yrd Mat Min Mat Min Mat Sto Rec Scr Fac Was Fac Ext Cet Arc Hub Fac Was Fac Active Infowar (turns) 5006 | 23 674 335 19 . . . . . 1838 . . 163 336 175 . 949 113 381 Optics 674 | . . . . . . . . . . . . 163 336 175 . . . . Sensors 2397 | . . . . . . . . . 1711 . . . . . . 686 . . Terrain 289 | . . . . . . . . . . . . . . . . . . 289 Structural 2016 | . . . . . . . . . 1522 . . . . . . 494 . . Seismic 1208 | 23 674 335 19 . . . . . . . . . . . . 157 . . Machine Analysis 511 | . . . . . . . . . . . . . . . . 17 113 381 Cloaking 6 | . . . . . . . . . . . . . . . . . . 6 ECM 471 | . . . . . . . . . . . . . . . . 444 1 26 Robot Analysis Total 9 | . . . 3 . 3 . 2 . . . . . . . . 1 . . Derelict Logs Recovered 3 | . . 1 . 2 . . . . . . . . . . . . . . Drone Launches . | . . . . . . . . . . . . . . . . . . . Drone Recoveries . | . . . . . . . . . . . . . . . . . . . Exploration | -11 -10 -10 -9 -9 -8 -8 -8 -8 -6 -6 -6 -6 -6 -6 -6 -5 -5 -5 ------------- Run | Yrd Mat Min Mat Min Mat Sto Rec Scr Fac Was Fac Ext Cet Arc Hub Fac Was Fac Turns Passed 10668 | 110 674 363 874 313 754 583 655 355 1939 30 210 472 336 541 907 1058 113 381 Spaces Moved 16604 | 57 865 544 1584 596 925 728 482 1130 3810 90 596 750 254 276 1160 1748 258 751 Core 147 | 3 2 5 . . . . . . . . . . . 41 . 93 . 3 Treads . | . . . . . . . . . . . . . . . . . . . Legs . | . . . . . . . . . . . . . . . . . . . Wheels 213 | 54 159 . . . . . . . . . . . . . . . . . Hover 2343 | . . . . . . . . . . . . . . 183 1160 1000 . . Flight 13901 | . 704 539 1584 596 925 728 482 1130 3810 90 596 750 254 52 . 655 258 748 Fastest Speed 23 | 50 37 37 31 31 31 31 31 31 23 32 25 25 29 29 42 23 37 25 Average Speed 34 | 97 49 37 31 31 31 31 31 31 24 32 25 26 29 128 44 40 37 29 Slowest Speed 600 | 100 200 100 104 31 31 31 31 31 101 32 32 105 29 600 45 435 37 200 Overloaded Moves . | . . . . . . . . . . . . . . . . . . . Propulsion Burnouts . | . . . . . . . . . . . . . . . . . . . Robots Hopped 105 | . 8 12 10 5 2 13 . . 26 4 1 5 . . . 13 . 6 Potential Cave-ins 9 | . . . . . . . . . . . . . . . 6 3 . . Cave-ins Triggered . | . . . . . . . . . . . . . . . . . . . Exploration Rate (%) 72 | 4 96 90 89 95 75 87 86 86 86 80 12 75 84 84 77 45 94 26 Regions Visited 18 Branch Regions 9 Pre-discovered Areas 28 | . 2 1 4 1 4 4 4 2 6 . . . . . . . . . Known Exits Taken 9 | . . . . 1 1 1 1 1 . . 1 1 1 . 1 . . . Unknown Exits Taken 5 | 1 1 1 1 . . . . . . . . . . 1 . . . . Scrap Searched 6 | . . 1 . 1 . . . 4 . . . . . . . . . . Spaces Dug 249 | . . 3 25 1 17 10 6 . 84 . 7 6 . . 31 35 . 24 Terrain Destroyed 489 | . . 26 74 13 17 47 6 . 122 . 7 49 . . 36 68 . 24 Melee 217 | . . . 24 1 17 10 6 . 66 . 7 6 . . 25 31 . 24 Projectile 22 | . . 3 1 . . . . . . . . . . . 11 7 . . AOE 250 | . . 23 49 12 . 37 . . 56 . . 43 . . . 30 . . Terrain Rammed . | . . . . . . . . . . . . . . . . . . . Walls Destroyed . | . . . . . . . . . . . . . . . . . . . Machines Disabled . | . . . . . . . . . . . . . . . . . . . Actions | -11 -10 -10 -9 -9 -8 -8 -8 -8 -6 -6 -6 -6 -6 -6 -6 -5 -5 -5 --------- Run | Yrd Mat Min Mat Min Mat Sto Rec Scr Fac Was Fac Ext Cet Arc Hub Fac Was Fac Total 20592 | 86 1020 662 1823 698 1331 1003 977 1134 4665 87 642 987 480 446 1436 1996 275 844 Wait 2754 | 8 59 111 109 86 343 207 489 3 519 . 30 155 187 113 187 99 14 35 Move 16397 | 56 848 523 1563 585 920 707 481 1129 3759 83 593 740 253 275 1159 1726 257 740 Hop 86 | . 8 8 10 5 2 7 . . 25 2 1 4 . . . 9 . 5 Pick Up 63 | 4 8 1 8 5 7 . . 2 9 1 2 3 . 5 . 5 1 2 Fast Attach 111 | 6 6 1 15 . 7 2 . . 12 . 3 3 3 14 2 26 . 11 Attach 42 | . 3 . . . 3 2 . . 7 . 4 6 2 2 . 10 1 2 Detach 28 | . 2 1 1 . 1 . . . 7 . 1 6 3 2 . 2 . 2 Swap 82 | . 4 4 14 4 4 6 1 . 16 . . 4 3 3 4 13 . 2 Drop 118 | . 16 2 19 . 9 2 . . 19 1 1 1 3 17 5 18 2 3 Fire 207 | 12 66 11 30 9 . 4 . . 6 . . 6 17 . 23 23 . . Melee 405 | . . . 54 4 35 41 6 . 82 . 7 48 . 15 44 42 . 27 Ram . | . . . . . . . . . . . . . . . . . . . Kick . | . . . . . . . . . . . . . . . . . . . Crush . | . . . . . . . . . . . . . . . . . . . Escape Stasis 26 | . . . . . . . . . . . . 11 . . . . . 15 Rewire . | . . . . . . . . . . . . . . . . . . . Trap 252 | . . . . . . 25 . . 204 . . . . . . 23 . . Miscellaneous 21 | . . . . . . . . . . . . . 9 . 12 . . . Route ------- -11/Scrapyard -10/Materials (discovered 4 exits: *Mat x3 / *Min) -10/Mines (discovered 4 exits: *Mat x2 / [*Exi] / [*Sub]) -9/Materials (discovered 4 exits: *Mat x3 / [*Min]) -9/Mines (discovered 3 exits: *Mat x2 / [*Zio]) -8/Materials (discovered 4 exits: *Fac x3 / *Sto) -8/Storage (discovered 2 exits: *Fac / *Rec) -8/Recycling (discovered 2 exits: *Fac / *Scr) -8/Scraptown (discovered 2 exits: *Fac x2) -6/Factory (discovered 8 exits: *Fac x4 / *Low x2 / *Ext x2) -6/Waste -6/Factory (discovered 2 exits: *Fac / *Ext) -6/Extension (discovered 3 exits: *Fac x2 / *Cet) -6/Cetus (discovered 2 exits: *Fac / *Arc) -6/Archives (discovered 3 exits: *Fac / *Hub x2) -6/Hub_04(d) (discovered 3 exits: *Fac x3) -5/Factory -5/Waste -5/Factory (discovered 2 exits: [*Fac] / [*Upp]) History --------- Turn | Location | Event 21 | -11/Scrapyard | Discovered new exit (range 16) 111 | -11/Scrapyard | Entered Materials 271 | -10/Materials | Discovered new exit (range 14) 312 | -10/Materials | Build established: Mutant 464 | -10/Materials | Discovered new exit (range 3) 477 | -10/Materials | Discovered new exit (range 16) 538 | -10/Materials | Discovered new exit (range 7) 785 | -10/Materials | Entered Mines 793 | -10/Mines | Discovered new exit (range 12) 854 | -10/Mines | Learned location of Zion (-7) 870 | -10/Mines | Discovered new exit (range 5) 885 | -10/Mines | Deemed a non-threat by the Exiles lab entrance 885 | -10/Mines | Discovered new exit (range 5) 899 | -10/Mines | YI-UF0 nonchalantly dropped a Grenade Launcher on the ground 990 | -10/Mines | Excavation squad dispatched 990 | -10/Mines | A large section of the Mines collapsed 1044 | -10/Mines | Met a Derelict who couldn't figure out how to use a Trap Extractor 1142 | -10/Mines | Discovered new exit (range 9) 1148 | -10/Mines | Entered Materials 1148 | -9/Materials | Evolved 2 slots: Propulsion x2 1470 | -9/Materials | Discovered new exit (range 16) 1517 | -9/Materials | Discovered new exit (range 4) 1618 | -9/Materials | Discovered new exit (range 9) 1642 | -9/Materials | Build established: Sprinter 1683 | -9/Materials | Discovered new exit (range 3) 1845 | -9/Materials | Identified exit to Materials 1884 | -9/Materials | Learned 4 Recycling zone layouts 1947 | -9/Materials | Learned Materials stockpile data 1948 | -9/Materials | Search patrols dispatched 1958 | -9/Materials | Learned Materials stockpile data 1978 | -9/Materials | Learned Storage stockpile data 2007 | -9/Materials | Loaded intel: 12 terminal locations 2022 | -9/Materials | Entered Mines 2023 | -9/Mines | A Derelict revealed a hidden shortcut to a safe place 2031 | -9/Mines | Received a Mining Laser from a helpful Derelict 2056 | -9/Mines | Learned 2 Materials zone layouts 2213 | -9/Mines | Discovered exit to Materials (range 6) 2213 | -9/Mines | Discovered exit to Materials (range 10) 2238 | -9/Mines | Assisted by bots powering up and referring to "LRC-V3" 2335 | -9/Mines | Entered Materials 2335 | -8/Materials | Accompanied by 6 allies 2335 | -8/Materials | Evolved 2 slots: Utility x2 2336 | -8/Materials | Identified exit to Factory 2340 | -8/Materials | Led the pair of lost Derelicts to an unsafe place 2370 | -8/Materials | Met 7R-MNS 2412 | -8/Materials | Repaired Imp. Flight Unit? 2519 | -8/Materials | Identified exit to Storage 2548 | -8/Materials | Discovered exit to Factory (range 15) 2641 | -8/Materials | Build established: Hacker-Sprinter 2661 | -8/Materials | Discovered exit to Factory (range 13) 2686 | -8/Materials | Learned location of 2 exits from Factory 2724 | -8/Materials | Central database locked down 2806 | -8/Materials | Learned 4 Recycling zone layouts 2852 | -8/Materials | Learned 12 Factory zone layouts 2889 | -8/Materials | Learned Factory fabricator intel 2914 | -8/Materials | Learned Factory trap positions 2960 | -8/Materials | Learned location of 1 exit from Extension 3052 | -8/Materials | Learned location of Lower Caves (-7) 3086 | -8/Materials | Repaired Mni. Grenade Launcher+ 3089 | -8/Materials | Entered Storage 3107 | -8/Storage | Assisted by bots powering up and referring to "LRC-V3" 3400 | -8/Storage | Lost 4 allies 3405 | -8/Storage | Discovered exit to Factory (range 16) 3433 | -8/Storage | Garrison activated, responded to threat 3435 | -8/Storage | Build established: Commander-Sprinter 3489 | -8/Storage | First assault squad dispatched 3491 | -8/Storage | Lost 5 allies 3492 | -8/Storage | Met a pair of Derelict thieves 3507 | -8/Storage | Identified exit to Recycling 3531 | -8/Storage | Used back door to open Recycling access 3620 | -8/Storage | Learned location of Extension (-6) 3669 | -8/Storage | Learned 2 Lower Caves zone layouts 3672 | -8/Storage | Entered Recycling 3673 | -8/Recycling | Identified exit to Scraptown 3673 | -8/Recycling | Identified exit to Factory 3784 | -8/Recycling | Build established: Hacker-Sprinter 3827 | -8/Recycling | Scanned before Scraplab entrance 3833 | -8/Recycling | Entered Scraplab 3897 | -8/Recycling | Learned 2 Storage zone layouts 3969 | -8/Recycling | Learned Factory repair station intel 4030 | -8/Recycling | Learned location of 1 exit from Recycling 4126 | -8/Recycling | Learned location of 2 exits from Lower Caves 4159 | -8/Recycling | Learned Factory fabricator intel 4214 | -8/Recycling | Learned 4 Recycling zone layouts 4258 | -8/Recycling | Learned location of 3 exits from Factory 4310 | -8/Recycling | Learned 4 Factory zone layouts 4327 | -8/Recycling | Entered Scraptown 4366 | -8/Scraptown | Heard Great Nut preacher, LISTEN AND RECITE! 4385 | -8/Scraptown | Discovered exit to Factory (range 11) 4404 | -8/Scraptown | Visited Spacefarers 4411 | -8/Scraptown | Visited Cyclists 4416 | -8/Scraptown | Visited TADAMA 4419 | -8/Scraptown | Visited Comm Corps 4463 | -8/Scraptown | Visited UFD Registry 4463 | -8/Scraptown | Registered with UFD as "Ionblaster" 4467 | -8/Scraptown | Visited Observation Area 4474 | -8/Scraptown | Visited Shadow of the Wyrm 4476 | -8/Scraptown | Visited Artisan Demo Area 4491 | -8/Scraptown | Entered Cyclist Reading Room 4512 | -8/Scraptown | Visited Supply Room 4523 | -8/Scraptown | Visited Science Guys 4534 | -8/Scraptown | Visited Scrapoid Research Area 4580 | -8/Scraptown | Visited Curators Association 4590 | -8/Scraptown | Visited Derelict Rescue Squad 4595 | -8/Scraptown | Visited Supply Room 4599 | -8/Scraptown | Visited Modified Component R&D 4611 | -8/Scraptown | Visited Chapter 10 4620 | -8/Scraptown | Visited Abandonware Association 4624 | -8/Scraptown | Learned abandonware demo "REVENGE.EXE" 4632 | -8/Scraptown | Visited Research Penetration Think Tank 4662 | -8/Scraptown | Met Optimus 4662 | -8/Scraptown | Accepted into 0bPrime 4682 | -8/Scraptown | Discovered exit to Factory (range 3) 4682 | -8/Scraptown | Entered Factory 4682 | -6/Factory | Evolved 4 slots: Propulsion x2, Utility x2 4683 | -6/Factory | Identified exit to Lower Caves 4683 | -6/Factory | Identified exit to Extension 4684 | -6/Factory | Identified exit to Factory 4686 | -6/Factory | Loaded intel: 101 trap records 4687 | -6/Factory | Loaded intel: 6 fabricator locations 4688 | -6/Factory | Loaded intel: 6 repair station locations 4722 | -6/Factory | Loaded intel: 8 recycling unit locations 4801 | -6/Factory | Learned location of Protoforge (-2) 5064 | -6/Factory | Fabricated Cesium-ion Thruster (x2) 5357 | -6/Factory | Repaired Imp. Datajack 5357 | -6/Factory | Learned Extension garrison access intel 5423 | -6/Factory | Learned 2 Extension zone layouts 5433 | -6/Factory | Build established: Hacker-Scout 5480 | -6/Factory | Learned location of Upper Caves (-5) 5529 | -6/Factory | Learned location of Lower Caves (-6) 5570 | -6/Factory | Learned 4 Upper Caves zone layouts 5623 | -6/Factory | Learned Hub_04(d) terminal intel 5643 | -6/Factory | Repaired Broken Imp. Flight Unit? 5686 | -6/Factory | Learned Extension stockpile data 6003 | -6/Factory | Learned Hub_04(d) stockpile data 6009 | -6/Factory | Spotted B-75 Beast 6059 | -6/Factory | Learned location of Warlord (-5) 6082 | -6/Factory | Search patrols dispatched 6144 | -6/Factory | Learned Hub_04(d) stockpile data 6156 | -6/Factory | Unchained authorized (CL-0N3) 6173 | -6/Factory | Learned 2 Lower Caves zone layouts 6191 | -6/Factory | Learned location of 1 exit from Hub_04(d) 6219 | -6/Factory | Learned location of 1 exit from Extension 6258 | -6/Factory | Learned location of Proximity Caves (-5) 6524 | -6/Factory | P-60 Hacker reconstituted as Quarantine Guard 6524 | -6/Factory | Spotted Quarantine Guard 6584 | -6/Factory | Build established: Hacker-Sprinter 6593 | -6/Factory | Lost 3 parts (1p1n1u) 6621 | -6/Factory | Sucked down chute 6621 | -6/Factory | Entered Waste 6625 | -6/Waste | Spotted C-40 Crusher 6635 | -6/Waste | Spotted C-40 Crusher 6636 | -6/Waste | EMP discharged 6636 | -6/Waste | System corruption reached 10% 6637 | -6/Waste | Spotted C-40 Crusher 6638 | -6/Waste | Spotted C-40 Crusher 6641 | -6/Waste | Spotted C-40 Crusher 6649 | -6/Waste | Discovered new exit (range 10) 6651 | -6/Waste | Identified exit to Factory 6651 | -6/Waste | Entered Factory 6652 | -6/Factory | Loaded intel: 5 fabricator locations 6679 | -6/Factory | Fabricated Cesium-ion Thruster (x2) 6691 | -6/Factory | Loaded intel: 8 recycling unit locations 6797 | -6/Factory | Discovered exit to Factory (range 3) 6860 | -6/Factory | Discovered exit to Extension (range 6) 6861 | -6/Factory | Entered Extension 6862 | -6/Extension | Identified exit to Cetus 6895 | -6/Extension | Loaded intel: 1 recycling unit location 6954 | -6/Extension | Energy Cycler disabled 6958 | -6/Extension | Rescued a captive Derelict 6964 | -6/Extension | Lost 4 allies 7068 | -6/Extension | Spotted B-75 Beast 7074 | -6/Extension | Lost 5 allies 7125 | -6/Extension | Allies destroyed B-75 Beast 7132 | -6/Extension | Spotted B-75 Beast 7164 | -6/Extension | Lost 7 allies 7168 | -6/Extension | Lost 3 parts (1p1n1u) 7171 | -6/Extension | Rescued A7 7211 | -6/Extension | First assault squad dispatched 7288 | -6/Extension | Discovered exit to Factory (range 10) 7333 | -6/Extension | Entered Cetus 7333 | -6/Cetus | Accompanied by 5 allies (A7) 7337 | -6/Cetus | Attached CPS modules to A7. 7338 | -6/Cetus | Acquired a Cetus Manufacturing Module code from A7 7355 | -6/Cetus | Spotted Cetus Guard 7355 | -6/Cetus | Spotted Cetus Guard 7355 | -6/Cetus | Spotted Cetus Guard 7355 | -6/Cetus | Spotted Cetus Guard 7356 | -6/Cetus | Allies destroyed Cetus Guard 7377 | -6/Cetus | Allies destroyed Cetus Guard 7377 | -6/Cetus | Destroyed Cetus Guard 7381 | -6/Cetus | Allies destroyed Cetus Guard 7428 | -6/Cetus | Started Cetus Manufacturing Module 7431 | -6/Cetus | Escorted A7 to Cetus Mainframe 7444 | -6/Cetus | Build established: Sprinter 7453 | -6/Cetus | Manufactured an Enhanced Grunt 7478 | -6/Cetus | Manufactured an Enhanced Grunt 7503 | -6/Cetus | Manufactured an Enhanced Grunt 7528 | -6/Cetus | Manufactured an Enhanced Grunt 7553 | -6/Cetus | Manufactured an Enhanced Grunt 7565 | -6/Cetus | Discovered new exit (range 21) 7577 | -6/Cetus | Spotted Cetus Guard 7577 | -6/Cetus | Spotted Cetus Guard 7577 | -6/Cetus | Spotted Cetus Guard 7577 | -6/Cetus | Spotted Cetus Guard 7604 | -6/Cetus | Allies destroyed Cetus Guard 7610 | -6/Cetus | Allies destroyed Cetus Guard 7614 | -6/Cetus | Allies destroyed Cetus Guard 7617 | -6/Cetus | Allies destroyed Cetus Guard 7622 | -6/Cetus | Discovered exit to Factory (range 21) 7625 | -6/Cetus | Met Revision 17 7642 | -6/Cetus | Identified exit to Archives 7669 | -6/Cetus | Entered Archives 7669 | -6/Archives | Accompanied by 7 allies (A7) 7674 | -6/Archives | Received a hacking code to weaken MAIN.C 7674 | -6/Archives | Murdered A7 7676 | -6/Archives | Extracted ID and sensor layout for unrecognized location from A7's data core 7735 | -6/Archives | Discovered new exit (range 21) 7783 | -6/Archives | Found Prototype Protection 7783 | -6/Archives | Identified Med. Regenerative Plating 7867 | -6/Archives | Discovered new exit (range 15) 7882 | -6/Archives | Discovered exit to Factory (range 14) 8089 | -6/Archives | Build established: Scavenger-Mutant 8210 | -6/Archives | Entered Hub_04(d) 8210 | -6/Hub_04(d) | Accompanied by 5 allies 8213 | -6/Hub_04(d) | Loaded intel: 13 terminal locations 8438 | -6/Hub_04(d) | Discovered exit to Factory (range 15) 8536 | -6/Hub_04(d) | Discovered exit to Factory (range 5) 8702 | -6/Hub_04(d) | Spotted B-75 Beast 8766 | -6/Hub_04(d) | Disrupted transfer network 8820 | -6/Hub_04(d) | Build established: Hacker-Mutant 8857 | -6/Hub_04(d) | Network Hub disabled 8875 | -6/Hub_04(d) | Network Hub disabled 8904 | -6/Hub_04(d) | Network Hub disabled 8909 | -6/Hub_04(d) | Learned 2 Lower Caves zone layouts 8927 | -6/Hub_04(d) | Network Hub disabled 8972 | -6/Hub_04(d) | Learned 4 Lower Caves zone layouts 9026 | -6/Hub_04(d) | Learned location of 1 exit from Extension 9071 | -6/Hub_04(d) | Learned Factory trap positions 9108 | -6/Hub_04(d) | Learned 2 Extension zone layouts 9116 | -6/Hub_04(d) | Core integrity fell below 50% 9117 | -6/Hub_04(d) | Entered Factory 9117 | -5/Factory | Evolved 2 slots: Utility x2 9118 | -5/Factory | Loaded intel: 105 trap records 9252 | -5/Factory | Loaded intel: 8 recycling unit locations 9426 | -5/Factory | Unchained authorized (GL-D0S) 9753 | -5/Factory | Fabricated Cesium-ion Thruster (x2) 9771 | -5/Factory | Fabricated Cesium-ion Thruster (x2) 9799 | -5/Factory | Fabricated Cesium-ion Thruster (x2) 9999 | -5/Factory | Scrapoid reinforcements arrived 10024 | -5/Factory | Lost 9 parts (6n1u2w) 10081 | -5/Factory | Core integrity fell below 50% 10086 | -5/Factory | Lost 4 allies 10087 | -5/Factory | Discovered new exit (range 10) 10138 | -5/Factory | Lost 9 parts (1p4n3u1w) 10175 | -5/Factory | Manually triggered Chute Trap 10175 | -5/Factory | Sucked down chute 10175 | -5/Factory | Entered Waste 10175 | -5/Waste | The area was eerily silent 10263 | -5/Waste | Discovered new exit (range 15) 10286 | -5/Waste | Identified exit to Factory 10288 | -5/Waste | Entered Factory 10329 | -5/Factory | Loaded intel: 8 recycling unit locations 10392 | -5/Factory | Adv. Hacking Suite fried by hacking feedback 10421 | -5/Factory | Discovered new exit (range 3) 10506 | -5/Factory | Unchained authorized (GL-D0S) 10525 | -5/Factory | Fabricated B-48 Gladiator? 10565 | -5/Factory | Fabricated L-41 Fighter? 10585 | -5/Factory | Lost 3 allies 10624 | -5/Factory | Discovered new exit (range 10) 10659 | -5/Factory | Core integrity fell below 20% 10669 | -5/Factory | Destroyed by S-27 Virus with Autogun Last Messages --------------- 10650_ Massive razor-sharp blades shoot up from within the floor. 10650_ Med. Regenerative Plating severed. 10650_ Acquired Med. Regenerative Plating. 10652_ Penetrated by Slug. 10652_ Greatsword destroyed. 10652_ Knocked back. 10654_ Terrain Scanner destroyed. 10655_ Lgt. Fission Core+ destroyed. 10657_ Med. Regenerative Plating severed. 10657_ Acquired Med. Regenerative Plating. 10663_ Cld. Nuclear Pulse Thruster severed. 10663_ Mni. Grenade Launcher+ severed. 10665_ Nuclear Pulse Array+ destroyed. 10666_ Cld. Nuclear Pulse Thruster severed. 10666_ Acquired Mni. Grenade Launcher+. 10667_ ALERT: Potential suspicious activity detected, Programmers report to Factory Zone 8K. 10668_ Mni. Grenade Launcher+ destroyed. Map ----- +----------------------------------------------------+ | | | | | | | ?????????????????????????????????????????????????? | | ?????????????????????????????????????????????#?##? | | ????????????????????????????????????????????#?#?#? | | ?????????????????????????????????????????????????? | | ?????????????????????????????????????????????????? | | ?????????????????????????????????????????????????? | | ????????????????????????????????????????????#??#?? | | ??????????????????????????????????????????????#??? | | ???????????????????????????????????#??#??????????? | | ??????????????????????????????????????????????##?# | | ?????????????????????????????????????????????????? | | ????????????????????????????????????????????????#? | | ?????????????????################################# | | ?????????????????? | | ?????????????????? | | ?????????????????? % % | | ???????????????""""""""" | | ????????????????? | | ???????????????""""""""" | | ?????????????? s | | ????????????? """"""""" ss##################### | | ????????????# cccs#???????#??????????# | | ???"""???"""???""""""""" @ c #??????????????????# | | ???"""????R"?? #???????????????#??# | | ???"""???"""? """"""""" #??????????????????# | | ???????????????? #??????????????????# | | ???"""?"""?????""""""""" #????#?????????????# | | ???"""?"""??????? #???????????##?????# | | ???"""?"""?????""""""""" #??????????????????# | | ?????????????????? ####????????#?#????#### | | ???????????????""""""""" #???????????#??????#??# | | ???????????????????? ####################### | | ???????????????""""""""" !! # | | ?????????????????????? ! ## | | ???????????????""""""""" !!! """ ! | | ??????????????????????? !! """ | | ??????????????????????? !! """ | | ????????????????????????##???# | | ????????????????????????????## ! | | ?????????????????????????????# | | ?????????????????????????????# | | ????????????????????????????## """ " | | ?????????????????????????????## ######### """ " | | ???????????????????????"????#?# #?####### """ " | | ????????????????????????????### ### # | | ????????????????????????? ??# ]# # !! | | ???????????????????????????## # # !! | +----------------------------------------------------+ Best States ------------- Heat Dissipation 40 Energy Generation 23 Energy Capacity 250 Matter Stores 300 Matter Capacity 300 Sight Range 22 Robot Scan Range 16 Terrain Scan Range 14 Terrain Scan Density 85 ECM Strength 1 Cloak Strength 2 Additional Mass Support 16 Corruption Block 15 Armor Coverage 225 Propulsion Shielding 66 Evasion (%) 65 Offensive Hacking 40 Defensive Hacking 14 Authchip Count 2 Trap Extractor Capacity 6 Item Schematics ----------------- Imp. Propulsion Shielding | -9/Materials | Scanalyzed Flight Unit | -9/Materials | Scanalyzed Imp. Trap Extractor | -9/Materials | Scanalyzed Cesium-ion Thruster | -8/Materials | Hacked System Restoration Module | -8/Materials | Scanalyzed Enh. Autogun | -8/Materials | Scanalyzed Reaction Control System | -8/Recycling | Hacked Plasma Cutter | -8/Recycling | Hacked Stasis Canceller | -6/Factory | Scanalyzed CPS Tube | -6/Factory | Scanalyzed Imp. System Restoration Module | -6/Factory | Hacked Adv. Point Defense System | -5/Factory | Hacked Adv. Gravity Neutralizer | -5/Factory | Scanalyzed Imp. Corruption Screen | -5/Factory | Hacked Imp. Transmission Jammer | -5/Factory | Hacked Field Propulsion Array | -5/Factory | Hacked Adv. Cloaking Device | -5/Factory | Scanalyzed Adv. Trap Extractor | -5/Factory | Scanalyzed Robot Schematics ------------------ None Fabricated ------------ Cesium-ion Thruster | x2 | -6/Factory | Authchip Cesium-ion Thruster | x2 | -6/Factory | Authchip Cesium-ion Thruster | x2 | -5/Factory | Authchip Cesium-ion Thruster | x2 | -5/Factory | Authchip Cesium-ion Thruster | x2 | -5/Factory B-48 Gladiator | x3 | -5/Factory | Preloaded L-41 Fighter | x3 | -5/Factory | Preloaded Repaired ---------- Imp. Flight Unit | 62% | -8/Materials Mni. Grenade Launcher | 82% | -8/Materials Imp. Datajack | 30% | -6/Factory Imp. Flight Unit | 37% | -6/Factory | Broken Studied --------- Flight Unit | -9/Materials | Hacked Lgt. Ion Engine | -9/Materials | Hacked Grenade Launcher | -9/Materials | Hacked Mni. Grenade Launcher | -8/Materials | Hacked Katana | -8/Materials | Hacked Lgt. Fission Core | -6/Factory | Hacked Cesium-ion Thruster | -6/Factory | Hacked Mic. Nuclear Core | -6/Factory | Hacked Mic. Antimatter Reactor | -5/Factory | Hacked Nuclear Pulse Array | -5/Factory | Hacked Nuclear Pulse Thruster | -5/Factory | Hacked Alien Tech Used ----------------- None Achievements -------------- None Challenges ------------ None Game ------ Seed StrikeSubdwellerMatter Manual? 0 Play Time 03:47:22 Cumulative 592.2 hours Start 2025.11.01 @ 11:28:15 End 2025.11.01 @ 15:47:33 Sessions 3 Manual Loads 0 Difficulty Rogue Special Mode None Game No. 246 Rogue 246 Adventurer 0 Explorer 0 Win Type - Total 43 Types 19/3/6/2/6/1/0/3/0/3 Lore% 96 Gallery% 88 Achievement% 71 Wizard Run 0 Options --------- Layout 1 ASCII 0 Keyboard 0 Movement Numpad Keybinds 0 Fullscreen 1 Font 24/Smallcaps Map View 50x35 Zoom Use 0% Tactical HUD 1 Map Filters NONE Filters NONE Steam 1 RUN: 02cdcc99-8f36-49bd-aa5f-d193eceea5f0